[Event "GER-ch Youth-U18 2022"]
[Site "Willingen"]
[Date "2022.06.08"]
[Round "6.13"]
[White "Mankel, Luca"]
[Black "Bornholdt, Joa Max"]
[Result "1/2-1/2"]
[ECO "C58"]
[WhiteElo "2010"]
[BlackElo "2155"]
[Annotator "TA"]
[PlyCount "66"]
[EventDate "2022.06.05"]
[EventType "swiss"]
[EventRounds "9"]
[EventCountry "GER"]
[SourceTitle "playchess.com"]
[Source "ChessBase"]
[SourceQuality "1"]
[TimeControl "40/4500+30:900+30"]

{[%evp 14,66,20,34,40,12,21,4,25,25,17,24,16,10,33,7,10,10,12,23,12,10,63,47,47,56,93,86,87,95,99,87,144,100,147,41,109,118,110,81,77,49,54,45,57,34,92,83,85,36,36,34,42,9,9]} 1. e4 {[%emt 0:00:00]} e5 {[%emt 0:00:00]} 2. Nf3 {[%emt 0:00:00]} Nc6 {[%emt 0:00:00]} 3. Bc4 {[%emt 0:00:00]} Nf6 {[%emt 0:00:00][%cal Bg8f6,Bf6d5,Bd5f4,Bf4d3][%mdl 32]} 4. Ng5 {[%emt 0:00:00]} d5 {[%emt 0:00:00]} 5. exd5 {[%emt 0:00:00]} Na5 {[%emt 0:00:00]} 6. Bb5+ {[%emt 0:00:00]} c6 {[%emt 0:00:00]} 7. dxc6 {[%emt 0:00:00]} bxc6 {[%emt 0:00:00]} 8. Bd3 {[%emt 0:00:00]} Nd5 {[%emt 0:00:00] C58: Two Knights: 4 Ng5 d5 5 exd5 Na5 sidelines.} 9. Nf3 {[%emt 0:00:00][%cal Bg5f3,Bf3e5,Be5c4][%mdl 32]} ({And not} 9. Qh5 g6 10. Nxf7 gxh5 $17) 9... Bd6 {[%emt 0:00:00]} 10. O-O {[%emt 0:00:00]} Nf4 {[%emt 0:00:00]} 11. Re1 {[%emt 0:00:00]} Nxd3 {[%emt 0:00:00]} 12. cxd3 {[%emt 0:00:00] Black should prevent d4.} O-O {[%emt 0:00:00]} 13. Nc3 $1 {[%emt 0:00:00] 13.Nc3 is better than 13.Nxe5.} c5 {[%emt 0:00:00]} 14. Nxe5 {[%emt 0:00:00]} Bb7 {[%emt 0:00:00]} ({Resist} 14... Qh4 15. d4 $16) 15. b3 {[%emt 0:00:00]} Re8 {[%emt 0:02:49]} 16. Nc4 {[%emt 0:00:00] [#] Strongly threatening Rxe8+.} Rxe1+ {[%emt 0:11:08]} 17. Qxe1 {[%emt 0:00:00] [#]} Nc6 $146 {[%emt 0:02:16]} (17... Nxc4 $11 18. dxc4 Qd7) ({Predecessor:} 17... Nxc4 18. dxc4 Bxh2+ 19. Kxh2 Qh4+ 20. Kg1 Bxg2 21. Kxg2 Qg4+ 22. Kf1 Qh3+ 23. Kg1 Qg4+ 24. Kf1 Qh3+ 25. Kg1 Qg4+ 26. Kf1 Qh3+ {½-½ (26) Schmidt,T (2414)-Keuter,K (2432) ICCF email 2018}) 18. Ne4 {[%emt 0:17:42]} Bf8 {[%emt 0:08:14] A strong pair of Bishops.} 19. Ba3 {[%emt 0:05:10]} Nb4 {[%emt 0:04:59]} 20. Bxb4 {[%emt 0:01:11]} cxb4 {[%emt 0:00:05]} 21. Qe3 {[%emt 0:00:25]} Qd5 {[%emt 0:02:12]} 22. Qg3 {[%emt 0:01:51] Nf6+ is the strong threat.} Kh8 {[%emt 0:04:36]} (22... Qd4 $142 23. Re1 Rd8) 23. Re1 {[%emt 0:01:50]} Rd8 {[%emt 0:01:23] [#]} (23... f6 $142) 24. Qg5 {[%emt 0:18:54]} (24. Ned6 $1 $16 {[%mdl 512]}) 24... h6 {[%emt 0:14:01]} ({Better is} 24... f5 $14 25. Ncd6 Rxd6 26. Nxd6 h6) 25. Qxd5 $16 {[%emt 0:00:32]} Rxd5 {[%emt 0:00:25]} 26. f3 {[%emt 0:16:20]} Rxd3 {[%emt 0:05:58]} 27. Kf1 {[%emt 0:03:41]} Ba6 {[%emt 0:04:32]} 28. Ke2 {[%emt 0:00:40]} Rd5 {[%emt 0:02:12]} 29. d3 {[%emt 0:01:51]} Kg8 {[%emt 0:05:12]} (29... g6 $14) 30. g4 {[%emt 0:00:44] White is more active.} Be7 {[%emt 0:02:50]} 31. Kd2 {[%emt 0:01:08]} (31. Ke3 $16) 31... g6 $14 {[%emt 0:01:22]} 32. Kc2 {[%emt 0:01:54]} Kf8 {[%emt 0:00:40]} 33. Ned2 {[%emt 0:01:34]} Bf6 {[%emt 0:01:58] Weighted Error Value: White=0.20 (precise) /Black=0.16 (very precise)} 1/2-1/2

[Event "GER-ch Youth-U18 2022"]
[Site "Willingen"]
[Date "2022.06.09"]
[Round "7.1"]
[White "Fromm, Marius"]
[Black "Koelle, Tobias"]
[Result "1/2-1/2"]
[ECO "B40"]
[WhiteElo "2317"]
[BlackElo "2431"]
[Annotator "TA"]
[PlyCount "45"]
[EventDate "2022.06.05"]
[EventType "swiss"]
[EventRounds "9"]
[EventCountry "GER"]
[SourceTitle "playchess.com"]
[Source "ChessBase"]
[SourceQuality "1"]
[TimeControl "40/4500+30:900+30"]

{[%evp 17,45,0,6,0,6,9,26,22,30,26,27,11,33,23,34,19,12,18,18,0,16,2,21,14,14,0,0,0,15,0]} 1. e4 {[%emt 0:00:00]} c5 {[%emt 0:00:00]} 2. Nf3 {[%emt 0:00:00]} e6 {[%emt 0:00:00]} 3. c4 {[%emt 0:00:00]} Nc6 {[%emt 0:00:00]} 4. Nc3 {[%emt 0:00:00]} Nf6 {[%emt 0:00:00]} 5. d4 {[%emt 0:00:00]} cxd4 {[%emt 0:00:00]} 6. Nxd4 {[%emt 0:00:00]} Bb4 {[%emt 0:00:00]} 7. Nxc6 {[%emt 0:00:00]} bxc6 {[%emt 0:01:56]} 8. Bd3 {[%emt 0:00:00]} e5 {[%emt 0:03:08]} 9. O-O {[%emt 0:00:00]} O-O {[%emt 0:01:46]} 10. Qe2 {[%emt 0:00:00] 10.h3 gains popularity. B44: Sicilian: Taimanov: 5 Nb5.} d6 {[%emt 0:03:40]} 11. Na4 {[%emt 0:00:00]} h6 {[%emt 0:08:30]} 12. a3 {[%emt 0:00:00] White has an edge.} Ba5 {[%emt 0:02:48] [#]} 13. b4 $146 {[%emt 0:00:00]} ({Predecessor:} 13. c5 d5 14. exd5 Nxd5 15. Qxe5 Bc7 16. Qd4 Re8 17. Bc2 Ba6 18. Rd1 Be2 19. Re1 {0-1 (109) Sjugirov,S (2663)-Indjic,A (2620) St Petersburg 2018}) 13... Bc7 {[%emt 0:00:01]} 14. Be3 {[%emt 0:00:00]} Re8 {[%emt 0:06:16]} 15. Rac1 {[%emt 0:00:44]} Ng4 {[%emt 0:13:39]} 16. Bd2 {[%emt 0:04:13]} Qh4 {[%emt 0:03:54][%csl Gg4][%cal Rh4h2] [#] The position is equal.} 17. h3 {[%emt 0:00:05]} Nf6 {[%emt 0:00:02]} 18. f4 {[%emt 0:19:25]} exf4 {[%emt 0:07:54]} 19. Rxf4 {[%emt 0:00:44]} Qg3 {[%emt 0:00:19] Threatens to win with ...d5.} 20. Rf3 $1 {[%emt 0:18:17]} Qh4 {[%emt 0:00:52]} 21. Rf4 {[%emt 0:01:08]} Qg3 {[%emt 0:03:21] [#] Strongly threatening ...d5.} 22. Rf3 {[%emt 0:00:27]} Qh4 {[%emt 0:00:06]} 23. Rf4 {An interesting draw.  Weighted Error Value: White=0.03 (flawless) /Black=0.05 (flawless)} 1/2-1/2

[Event "GER-ch Youth-U18 2022"]
[Site "Willingen"]
[Date "2022.06.09"]
[Round "7.2"]
[White "Pubantz, Jan"]
[Black "Dahl, Christoph"]
[Result "0-1"]
[ECO "E92"]
[WhiteElo "2265"]
[BlackElo "2368"]
[Annotator "TA"]
[PlyCount "133"]
[EventDate "2022.06.05"]
[EventType "swiss"]
[EventRounds "9"]
[EventCountry "GER"]
[SourceTitle "playchess.com"]
[Source "ChessBase"]
[SourceQuality "1"]
[TimeControl "40/4500+30:900+30"]

{[%evp 18,133,47,45,65,64,73,68,92,84,110,121,137,112,116,77,76,64,78,48,66,21,24,20,25,20,35,-10,0,-3,42,15,41,28,31,21,41,19,37,-7,-8,-27,-10,-33,-29,-25,14,-32,-35,-46,-45,-155,-156,-167,-167,-520,-516,-955,-942,-997,-521,-517,-533,-543,-538,-543,-510,-521,-534,-899,-928,-830,-810,-1170,-1128,-884,-340,-5052,-5043,-1327,-755,-1443,-614,-2214,-2244,-2172,-2233,-2145,-1995,-2025,-2000,-1153,-1737,-2052,-1934,-29971,-29972,-29980,-29980,-29981,-29982,-29981,-29982,-29982,-29982,-29982,-29981,-29986,-29987,-29991,-29992,-29993,-29994,-29995,-29996,-29997,-29998,-29998]} 1. d4 {[%emt 0:00:00]} Nf6 {[%emt 0:00:00]} 2. c4 {[%emt 0:00:00]} g6 {[%emt 0:00:00]} 3. Nc3 {[%emt 0:00:00]} Bg7 {[%emt 0:00:00]} 4. e4 {[%emt 0:00:00]} d6 {[%emt 0:00:00]} 5. Be2 {[%emt 0:00:00]} O-O {[%emt 0:00:00]} 6. Nf3 {[%emt 0:00:00][%cal Bg1f3,Bf3d2,Bd2b3][%mdl 32]} e5 {[%emt 0:00:00]} 7. Be3 {[%emt 0:00:00]} Na6 {[%emt 0:00:00]} 8. d5 {[%emt 0:00:00]} Ng4 {[%emt 0:00:00]} 9. Bg5 {[%emt 0:00:00]} f6 {[%emt 0:00:00]} 10. Bh4 {[%emt 0:00:00]} h5 {[%emt 0:00:00] E92: King's Indian: Classical: 6 Be2 e5: 7 dxe5, 7 Be3 and Petrosian System without 7...Nbd7.} 11. Nd2 {[%emt 0:02:08]} ({Of course not} 11. h3 Nh6 $11) 11... Nh6 {[%emt 0:00:00] ...g5 is the strong threat.} 12. f3 {[%emt 0:01:05]} Qe8 {[%emt 0:00:26] White is slightly better.} 13. h3 {[%emt 0:12:04] [#]} g5 $146 {[%emt 0:08:29]} ({Predecessor:} 13... f5 14. a3 g5 15. Bf2 Qg6 16. exf5 Nxf5 17. Bd3 Qf7 18. Nce4 Bh6 19. Qc2 Nd4 {1-0 (48) Laurusas,T (2291)-Khosla,S (2354) Porto Carras 2010}) 14. Bf2 {[%emt 0:00:32]} h4 {[%emt 0:00:35]} 15. Nb3 {[%emt 0:08:49]} b6 {[%emt 0:06:59]} 16. Be3 {[%emt 0:01:34]} Nf7 {[%emt 0:10:00]} 17. Qd2 {[%emt 0:01:32]} Nh8 {[%emt 0:00:45]} 18. O-O-O {[%emt 0:07:30]} Ng6 {[%emt 0:01:47]} 19. g3 {[%emt 0:02:43]} hxg3 {[%emt 0:00:25]} 20. Rdg1 {[%emt 0:00:21]} Kf7 $1 {[%emt 0:04:19]} 21. Rxg3 {[%emt 0:12:55][%cal Oe3g5] next Bxg5! is good for White.} Rh8 {[%emt 0:00:15]} 22. Nd1 {[%emt 0:05:10]} Nc5 {[%emt 0:12:07]} 23. Nxc5 {[%emt 0:02:11]} dxc5 {[%emt 0:00:44]} 24. Nc3 {[%emt 0:05:48]} Bf8 {[%emt 0:11:10]} 25. a3 {[%emt 0:02:28]} Be7 {[%emt 0:04:22]} 26. Bf1 {[%emt 0:02:27]} Bd7 {[%emt 0:01:27]} 27. Nd1 {[%emt 0:01:50]} Bd6 {[%emt 0:11:42]} 28. Nf2 {[%emt 0:00:59]} Qe7 {[%emt 0:01:49]} 29. b3 {[%emt 0:06:11]} a6 {[%emt 0:03:02]} 30. Qc2 {[%emt 0:02:52]} Nf4 {[%emt 0:01:15]} 31. Rgg1 {[%emt 0:05:54][%cal Oh3h4]} b5 {[%emt 0:01:21]} 32. Nd3 {[%emt 0:02:15]} (32. h4 $11 {might be stronger.}) 32... bxc4 {[%emt 0:02:57]} 33. bxc4 {[%emt 0:00:03][%cal Oh3h4]} Ng6 {[%emt 0:03:17]} 34. Qf2 {[%emt 0:01:06] White is on the road to losing.} ({White should play} 34. Kb2 $15) 34... c6 $17 {[%emt 0:00:54] The board is on fire.} 35. dxc6 {[%emt 0:01:17]} Bxc6 {[%emt 0:00:12]} 36. Bxc5 $2 {[%emt 0:00:22]} (36. h4 Nxh4 37. Be2) 36... Nf4 $19 {[%emt 0:00:24] White must now prevent ...Nxd3+.} 37. Bxd6 {[%emt 0:01:09]} (37. Bb4 $142 Nxd3+ 38. Bxd3 Bxb4 39. axb4 Qxb4 40. Kd1) 37... Qxd6 {[%emt 0:01:13]} 38. Nxf4 {[%emt 0:00:13]} exf4 {[%emt 0:01:00]} ({Weaker is} 38... gxf4 39. c5 Qe6 40. Qg2 $11) 39. c5 {[%emt 0:00:42]} Qe5 {[%emt 0:00:06]} 40. Bc4+ {[%emt 0:00:38]} Kg7 {[%emt 0:00:57]} 41. Kb1 {[%emt 0:00:00]} Qc3 {[%emt 0:00:00][%csl LRa3,LRc4]} 42. Rc1 {[%emt 0:02:47]} Qxa3 {[%emt 0:00:00] ( -> ...Rab8+)} 43. Ba2 {[%emt 0:01:17]} Rab8+ {[%emt 0:00:00]} 44. Ka1 {[%emt 0:00:17] [#]} Rxh3 $3 {[%emt 0:00:00][%mdl 512]} 45. Qc2 {[%emt 0:09:13]} (45. Qd2 Rxh1) 45... Rxh1 {[%emt 0:00:00]} 46. Rxh1 {[%emt 0:00:09]} Qb4 $2 {[%emt 0:00:00]} (46... Qxf3 47. Rc1 Rb4) 47. Rb1 {[%emt 0:02:41]} (47. Rc1 Qa3 48. Re1) 47... Qd4+ {[%emt 0:00:00]} 48. Rb2 {[%emt 0:00:06]} f5 {[%emt 0:00:00]} 49. Bd5 {[%emt 0:03:02] [#]} Rb5 $1 {[%emt 0:00:00]} 50. Bxc6 {[%emt 0:00:37]} (50. Qd2 Qxb2+) 50... Ra5+ {[%emt 0:00:00]} 51. Kb1 {[%emt 0:00:24]} Qg1+ {[%emt 0:00:00]} 52. Qc1 {[%emt 0:00:06] [#]} Ra1+ $3 {[%emt 0:00:00][%mdl 576] Skewer, Deflection} 53. Kxa1 {[%emt 0:00:06]} Qxc1+ {[%emt 0:00:00][%mdl 4096] Endgame KQ-KRB} 54. Ka2 {[%emt 0:00:13]} Qxc5 {[%emt 0:00:00]} 55. Bd5 {[%emt 0:00:19] Inhibits Qc4+.} fxe4 {[%emt 0:00:00]} 56. Bxe4 {[%emt 0:00:27]} g4 {[%emt 0:00:00] Black mates.} 57. Rb7+ {[%emt 0:01:15]} Kf6 {[%emt 0:00:00]} 58. Rh7 {[%emt 0:00:45]} gxf3 {[%emt 0:00:00]} 59. Rh6+ {[%emt 0:00:35]} Kg5 {[%emt 0:00:00]} 60. Rg6+ {[%emt 0:00:50]} Kh5 {[%emt 0:00:00]} 61. Rc6 {[%emt 0:00:30]} Qe3 {[%emt 0:00:00]} 62. Bg6+ {[%emt 0:00:30]} Kg5 {[%emt 0:00:00]} 63. Rxa6 {[%emt 0:00:22]} Qe2+ {[%emt 0:00:00]} 64. Bc2 {[%emt 0:00:04]} Qxa6+ {[%emt 0:00:00]} 65. Kb1 {[%emt 0:00:15]} f2 {[%emt 0:00:00]} 66. Bd3 {[%emt 0:00:21]} Qxd3+ {[%emt 0:00:00]} 67. Ka2 {[%emt 0:00:09] Weighted Error Value: White=1.00/Black=0.47} 0-1

[Event "GER-ch Youth-U18 2022"]
[Site "Willingen"]
[Date "2022.06.09"]
[Round "7.3"]
[White "Zackrisson, Peter"]
[Black "Weishaeutel, Moritz"]
[Result "0-1"]
[ECO "B52"]
[WhiteElo "2015"]
[BlackElo "2406"]
[Annotator "TA"]
[PlyCount "104"]
[EventDate "2022.06.05"]
[EventType "swiss"]
[EventRounds "9"]
[EventCountry "GER"]
[SourceTitle "playchess.com"]
[Source "ChessBase"]
[SourceQuality "1"]
[TimeControl "40/4500+30:900+30"]

{[%evp 21,104,18,22,29,32,0,44,38,39,34,54,8,12,-16,31,33,18,24,43,13,31,0,0,-17,0,-30,-29,-25,-46,-87,-95,-168,-172,-168,-94,-92,-111,-113,-99,-138,-130,-114,-102,-120,-33,-165,-53,-54,-49,-261,-240,-209,-197,-633,-209,-312,-202,-356,-137,-135,-125,-450,-477,-452,-439,-600,-595,-644,-610,-641,-628,-622,-570,-778,-714,-1348,-1345,-6270,-6347,-29981,-29982,-29982,-29982,-29991,-29992]} 1. e4 {[%emt 0:00:00]} c5 {[%emt 0:00:00]} 2. Nf3 {[%emt 0:00:00]} d6 {[%emt 0:00:00]} 3. Bb5+ {[%emt 0:00:00]} Bd7 {[%emt 0:00:00]} 4. Bxd7+ {[%emt 0:00:00]} Qxd7 {[%emt 0:00:00]} 5. c4 {[%emt 0:00:00]} Nf6 {[%emt 0:00:00]} 6. Nc3 {[%emt 0:00:00]} Nc6 {[%emt 0:00:00]} 7. d4 {[%emt 0:00:00]} cxd4 {[%emt 0:00:00]} 8. Nxd4 {[%emt 0:00:00]} g6 {[%emt 0:00:00]} 9. f3 {[%emt 0:00:00]} Bg7 {[%emt 0:00:00]} 10. Be3 {[%emt 0:00:00]} O-O {[%emt 0:00:00]} 11. O-O {[%emt 0:00:00]} a6 {[%emt 0:00:00]} 12. Qd3 {[%emt 0:00:00] B52: Sicilian: Moscow Variation with 3...Bd7.} Rab8 {[%emt 0:00:00] 12...Rfc8 is becoming the main line.} 13. Rac1 {[%emt 0:00:37]} Rfc8 {[%emt 0:06:05]} 14. Nxc6 {[%emt 0:02:20] [#] White is slightly better.} bxc6 $146 {[%emt 0:00:34]} ({Predecessor:} 14... Rxc6 15. a4 Qd8 16. b3 Nd7 17. Rfd1 Nc5 18. Qb1 Bxc3 19. Rxc3 Qc7 {1-0 (57) Zhang,Z (2634)-Sandipan,C (2593) Singapore 2007}) 15. b3 {[%emt 0:01:49]} Qb7 {[%emt 0:01:42]} 16. c5 {[%emt 0:11:02]} (16. Na4 $14) 16... d5 $11 {[%emt 0:04:54]} 17. Rfd1 {[%emt 0:05:10][%cal Re4d5]} e6 {[%emt 0:03:41]} (17... dxe4 $11 18. Nxe4 Nd5) 18. Bf4 $14 {[%emt 0:03:36]} Ra8 {[%emt 0:00:39]} 19. Na4 {[%emt 0:00:44] Threatening Nb6.} Nd7 {[%emt 0:01:22] Prevents Nb6.} 20. Rc2 {[%emt 0:06:20]} Re8 {[%emt 0:18:50]} 21. Be3 {[%emt 0:02:24]} Rad8 {[%emt 0:02:35]} 22. Qe2 {[%emt 0:13:24]} Nf6 {[%emt 0:04:39]} 23. Bg5 {[%emt 0:03:10]} dxe4 {[%emt 0:03:23]} 24. Rxd8 {[%emt 0:00:12]} Rxd8 {[%emt 0:00:01]} 25. fxe4 {[%emt 0:00:14]} Rd4 {[%emt 0:01:23]} 26. Be3 {[%emt 0:13:42]} (26. Nc3 $17) 26... Rxe4 $19 {[%emt 0:02:02]} 27. Qd3 {[%emt 0:00:33]} Qd7 {[%emt 0:07:30]} (27... Qb4 $19 28. Qd8+ Bf8) 28. Qxd7 $17 {[%emt 0:02:59]} Nxd7 {[%emt 0:00:02]} 29. Rd2 {[%emt 0:01:48]} Rxe3 {[%emt 0:03:35]} 30. Kf2 {[%emt 0:03:38] [#]} Re5 $1 {[%emt 0:01:56]} 31. Rxd7 {[%emt 0:00:17][%mdl 4096] Endgame KRB-KRN} Rd5 {[%emt 0:00:30]} 32. Rc7 {[%emt 0:01:17]} Rd2+ {[%emt 0:00:30]} (32... Bd4+ $1 $17 33. Ke2 Bxc5 34. Rxc6 Bg1) 33. Kf3 {[%emt 0:00:44] [#]} ({White should try} 33. Ke3 $1 $15 Rxg2 34. Rxc6) 33... f5 {[%emt 0:04:19]} (33... Rxa2 34. Rxc6 Be5 35. Rxa6 $11) (33... Bd4 $1 $19 {Strongly threatening ...f5.} 34. Rc8+ Kg7 35. Rxc6 e5) 34. Rxc6 {[%emt 0:01:32]} e5 {[%emt 0:00:02][%cal Be6e5,Be5e4][%mdl 32]} 35. Rd6 $2 {[%emt 0:04:52]} ({Better is} 35. Rc8+ $15 Kf7 36. Rc7+ Kf6 37. Kg3) 35... e4+ $19 {[%emt 0:01:07]} (35... Rxa2 36. Rd8+ Kf7 37. Rd7+ Kf6 38. c6 e4+ 39. Kg3 $17) 36. Kf4 {[%emt 0:00:10]} Rf2+ {[%emt 0:05:32]} (36... Rxg2 37. Rd8+ Kf7 38. Rd7+ Kf6 39. Rd6+ Ke7 40. Nb6) 37. Kg3 $2 {[%emt 0:04:34]} (37. Ke3 Rxg2 38. Rxa6) 37... Rc2 $2 {[%emt 0:00:15]} (37... e3 {( -> ...Be5+)} 38. Rd8+ (38. Re6 $2 Bd4 $19) 38... Kf7 39. Rd7+ Ke6) 38. Rd5 {[%emt 0:01:16] Inhibits Be5+.} (38. Rd8+ $142 Kf7 39. Rd7+ Kf8 40. Rd5 (40. Kf4 $2 Bh6+ 41. Kg3 f4+ 42. Kh3 Bg7 $19)) 38... Kf7 {[%emt 0:02:32]} (38... Rxa2 $2 39. c6 Bf8 40. c7 $18) 39. Nb6 $2 {[%emt 0:00:28]} (39. Rd7+ Kf8 40. Rd5 (40. Kf4 $2 Bh6+ 41. Kg3 f4+ 42. Kh3 Bg7 $19)) 39... Rc3+ $2 {[%emt 0:09:41]} (39... Rxa2 40. c6 Rc2 41. Nc4 $18) (39... e3 $19 {and Black stays clearly on top. And now ...f4+ would win.} 40. Rd7+ Ke8) 40. Kf2 $17 {[%emt 0:00:46] [#]} Rxc5 $1 {[%emt 0:01:32]} 41. Rxc5 {[%emt 0:17:04][%mdl 8192]} (41. Rd7+ $17 Kf6 42. Nc4) 41... Bd4+ $19 {[%emt 0:15:05][%mdl 64] Skewer, Double Attack} 42. Ke2 {[%emt 0:00:00]} Bxc5 {[%emt 0:00:00] KB-KN} 43. Nd7 {[%emt 0:00:00]} Bd6 {[%emt 0:00:00]} 44. h3 {[%emt 0:00:00]} Ke6 {[%emt 0:00:00]} 45. Nb6 {[%emt 0:00:00]} Bc5 {[%emt 0:00:00]} 46. Nc4 {[%emt 0:00:00]} Kd5 {[%emt 0:00:00]} 47. Kd2 {[%emt 0:00:00]} f4 {[%emt 0:00:00][%cal Bf5f4,Bf4f3][%mdl 32] White must now prevent ...g5.} 48. Ke2 {[%emt 0:00:00]} g5 {[%emt 0:00:00][%cal Bg6g5,Bg5g4,Bg4g3][%mdl 32]} 49. h4 {[%emt 0:00:00]} g4 {[%emt 0:00:00]} 50. h5 {[%emt 0:00:00]} f3+ {[%emt 0:00:00] Black mates.} 51. gxf3 {[%emt 0:00:00]} exf3+ {[%emt 0:00:00]} 52. Kf1 {[%emt 0:00:00]} g3 {[%emt 0:00:00] Weighted Error Value: White=1.00/Black=0.34} 0-1